[Event "European Online Club-ch-C 2021"]
[Site "Online"]
[Date "2021.03.27"]
[Round "4.9"]
[White "Micottis, Dorian"]
[Black "Babula, Vlastimil"]
[Result "1/2-1/2"]
[ECO "B40"]
[WhiteElo "2223"]
[BlackElo "2559"]
[Annotator "ChessBase"]
[PlyCount "135"]
[EventDate "2021.03.27"]
[EventType "team-tourn"]
[EventCountry "NET"]
[SourceTitle "playchess.com"]
[Source "ChessBase"]
[SourceQuality "1"]
[TimeControl "900+5"]

1. e4 {[%emt 0:00:00]} c5 {[%emt 0:00:07]} 2. Nf3 {[%emt 0:00:04]} e6 {[%emt 0:00:02]} 3. g3 {[%emt 0:00:03]} Nc6 {[%emt 0:00:07]} 4. Bg2 {[%emt 0:00:02]} Nf6 {[%emt 0:00:04]} 5. Qe2 {[%emt 0:00:02]} e5 {[%emt 0:00:05]} 6. c3 {[%emt 0:00:18]} Be7 {[%emt 0:00:05]} 7. O-O {[%emt 0:00:03]} O-O {[%emt 0:00:03]} 8. Na3 {[%emt 0:00:54]} Re8 {[%emt 0:00:06]} 9. d3 {[%emt 0:00:15]} h6 {[%emt 0:00:18]} 10. Nc4 {[%emt 0:00:01]} Bf8 {[%emt 0:00:04]} 11. a4 {[%emt 0:00:13]} d6 {[%emt 0:00:10]} 12. Ne3 {[%emt 0:00:18]} d5 {[%emt 0:00:26]} 13. exd5 {[%emt 0:00:31]} Nxd5 {[%emt 0:00:04]} 14. Nxd5 {[%emt 0:00:38]} Qxd5 {[%emt 0:00:06]} 15. Nd2 {[%emt 0:00:01]} Qd6 {[%emt 0:00:34]} 16. Nc4 {[%emt 0:00:08]} Qg6 {[%emt 0:03:31]} 17. Be4 {[%emt 0:01:20]} Bf5 {[%emt 0:00:04]} 18. Qf3 {[%emt 0:02:01]} Bg4 {[%emt 0:00:11]} 19. Bxg6 {[%emt 0:00:51]} Bxf3 {[%emt 0:00:04]} 20. Be4 {[%emt 0:00:01]} Bh5 {[%emt 0:00:31]} 21. a5 {[%emt 0:01:29]} a6 {[%emt 0:00:07]} 22. Re1 {[%emt 0:00:40]} Rad8 {[%emt 0:00:47]} 23. f4 {[%emt 0:02:25]} exf4 {[%emt 0:00:29]} 24. Bxf4 {[%emt 0:00:03]} Bg6 {[%emt 0:02:25]} 25. Bxg6 {[%emt 0:01:08]} Rxe1+ {[%emt 0:00:19]} 26. Rxe1 {[%emt 0:00:02]} fxg6 {[%emt 0:00:02]} 27. Re3 {[%emt 0:00:22]} g5 {[%emt 0:00:11]} 28. Bc7 {[%emt 0:00:25]} Rd7 {[%emt 0:00:04]} 29. Bb6 {[%emt 0:00:29]} Kf7 {[%emt 0:01:11]} 30. Kf2 {[%emt 0:00:03]} Be7 {[%emt 0:00:19]} 31. Ke2 {[%emt 0:00:13]} Rd5 {[%emt 0:00:31]} 32. g4 {[%emt 0:00:48]} Bf6 {[%emt 0:01:21]} 33. h3 {[%emt 0:00:17]} Ne7 {[%emt 0:00:39]} 34. Bc7 {[%emt 0:00:31]} Rd7 {[%emt 0:00:47]} 35. Bd6 {[%emt 0:00:30]} Nd5 {[%emt 0:00:36]} 36. Rf3 {[%emt 0:00:01]} Kg6 {[%emt 0:00:51]} 37. Bxc5 {[%emt 0:00:04]} h5 {[%emt 0:00:08]} 38. Bd6 {[%emt 0:00:14]} Rd8 {[%emt 0:00:10]} 39. Kd2 {[%emt 0:00:07]} Rh8 {[%emt 0:00:14]} 40. Ne3 {[%emt 0:00:32]} Nf4 {[%emt 0:00:10]} 41. Bxf4 {[%emt 0:00:03]} gxf4 {[%emt 0:00:05]} 42. Rxf4 {[%emt 0:00:11]} Bg5 {[%emt 0:00:03]} 43. Re4 {[%emt 0:00:05]} hxg4 {[%emt 0:00:02]} 44. hxg4 {[%emt 0:00:04]} Rh2+ {[%emt 0:00:02]} 45. Kd1 {[%emt 0:00:07]} Bxe3 {[%emt 0:00:03]} 46. Rxe3 {[%emt 0:00:01]} Rxb2 {[%emt 0:00:02]} 47. Re6+ {[%emt 0:00:08]} Kg5 {[%emt 0:00:04]} 48. Re4 {[%emt 0:00:02]} Ra2 {[%emt 0:00:18]} 49. Rb4 {[%emt 0:00:04]} g6 {[%emt 0:00:10]} 50. Rxb7 {[%emt 0:00:06]} Rxa5 {[%emt 0:00:02]} 51. Rb4 {[%emt 0:00:03]} Ra2 {[%emt 0:00:02]} 52. Kc1 {[%emt 0:00:03]} a5 {[%emt 0:00:03]} 53. Rc4 {[%emt 0:00:07]} Rg2 {[%emt 0:00:06]} 54. d4 {[%emt 0:00:10]} Kxg4 {[%emt 0:00:09]} 55. d5+ {[%emt 0:00:06]} Kf5 {[%emt 0:00:02]} 56. d6 {[%emt 0:00:04]} Ke6 {[%emt 0:00:02]} 57. Rd4 {[%emt 0:00:01]} Kd7 {[%emt 0:00:02]} 58. c4 {[%emt 0:00:03]} Rg5 {[%emt 0:00:08]} 59. Kb2 {[%emt 0:00:03]} Rc5 {[%emt 0:00:02]} 60. Kb3 {[%emt 0:00:03]} Rc6 {[%emt 0:00:02]} 61. Rd5 {[%emt 0:00:06]} Rxd6 {[%emt 0:00:02]} 62. Rxa5 {[%emt 0:00:02]} Kc7 {[%emt 0:00:05]} 63. Ra7+ {[%emt 0:00:07]} Kb6 {[%emt 0:00:09]} 64. Rg7 {[%emt 0:00:04]} Kc5 {[%emt 0:00:06]} 65. Rc7+ {[%emt 0:00:05]} Kb6 {[%emt 0:00:02]} 66. Rg7 {[%emt 0:00:02]} Kc5 {[%emt 0:00:02]} 67. Rc7+ {[%emt 0:00:02]} Kb6 {[%emt 0:00:02]} 68. Rg7 {[%emt 0:00:01]} 1/2-1/2

[Event "European Online Club-ch-C 2021"]
[Site "Online"]
[Date "2021.03.27"]
[Round "4.10"]
[White "Wachinger, Nikolas"]
[Black "Bruch, Jochen"]
[Result "1/2-1/2"]
[ECO "B23"]
[WhiteElo "2369"]
[BlackElo "2187"]
[Annotator "NA"]
[PlyCount "130"]
[EventDate "2021.03.27"]
[EventType "team-tourn"]
[EventCountry "NET"]
[SourceTitle "playchess.com"]
[Source "ChessBase"]
[SourceQuality "1"]
[TimeControl "900+5"]

1. e4 {[%emt 0:00:00]} c5 {[%emt 0:00:04]} 2. Nc3 {[%emt 0:00:14]} e6 {[%emt 0:00:04]} 3. g3 {[%emt 0:00:30]} g6 {[%emt 0:00:05]} 4. d4 {[%emt 0:01:43]} cxd4 {[%emt 0:01:49]} 5. Qxd4 {[%emt 0:00:00]} Qf6 {[%emt 0:00:03]} 6. Qd1 {[%emt 0:01:11]} a6 {[%emt 0:00:14]} 7. Bg2 {[%emt 0:00:24]} Nc6 {[%emt 0:01:33]} 8. Nf3 {[%emt 0:00:13]} Qd8 {[%emt 0:00:32]} 9. Bg5 {[%emt 0:00:40]} Qb6 {[%emt 0:00:10]} 10. O-O {[%emt 0:01:39]} Bg7 {[%emt 0:00:10]} 11. Qd6 {[%emt 0:01:32]} Qb4 {[%emt 0:01:34]} 12. Rad1 {[%emt 0:01:09]} Qxd6 {[%emt 0:01:32]} 13. Rxd6 {[%emt 0:00:00]} f6 {[%emt 0:01:51]} 14. Bf4 {[%emt 0:00:36]} g5 {[%emt 0:01:54]} 15. Be3 {[%emt 0:00:05]} g4 {[%emt 0:00:03]} 16. Ne1 {[%emt 0:00:23]} b5 {[%emt 0:00:11]} 17. e5 {[%emt 0:00:44]} Bb7 {[%emt 0:00:05]} 18. Ne4 {[%emt 0:00:42]} Nxe5 {[%emt 0:00:45]} 19. Nxf6+ {[%emt 0:00:44]} Bxf6 {[%emt 0:00:13]} 20. Bxb7 {[%emt 0:00:02]} Rb8 {[%emt 0:00:02]} 21. Bxa6 {[%emt 0:00:21]} Nc4 {[%emt 0:00:04]} 22. Rd3 {[%emt 0:00:13]} Nxe3 {[%emt 0:02:36]} 23. fxe3 {[%emt 0:00:02]} Bxb2 {[%emt 0:00:05]} 24. Rb3 {[%emt 0:00:10]} Be5 {[%emt 0:00:07]} 25. Nd3 {[%emt 0:00:09]} Bd6 {[%emt 0:00:06]} 26. Bxb5 {[%emt 0:00:16]} Ke7 {[%emt 0:00:07]} 27. e4 {[%emt 0:00:17]} Nh6 {[%emt 0:00:18]} 28. a4 {[%emt 0:00:09]} Bc7 {[%emt 0:00:03]} 29. Kg2 {[%emt 0:00:16]} Nf7 {[%emt 0:00:04]} 30. Bxd7 {[%emt 0:00:37]} Ng5 {[%emt 0:00:26]} 31. Bc6 {[%emt 0:00:14]} Nf3 {[%emt 0:00:03]} 32. Rfb1 {[%emt 0:00:41]} Nd4 {[%emt 0:00:06]} 33. Rb7 {[%emt 0:00:25]} Kd6 {[%emt 0:00:14]} 34. Rxb8 {[%emt 0:00:17]} Rxb8 {[%emt 0:00:05]} 35. Bb5 {[%emt 0:00:15]} Nxc2 {[%emt 0:00:05]} 36. Rc1 {[%emt 0:00:19]} Ne3+ {[%emt 0:00:18]} 37. Kf2 {[%emt 0:00:03]} Bb6 {[%emt 0:00:03]} 38. Rc6+ {[%emt 0:00:07]} Ke7 {[%emt 0:00:03]} 39. Rxb6 {[%emt 0:00:09]} Nd1+ {[%emt 0:00:04]} 40. Ke1 {[%emt 0:00:03]} Rxb6 {[%emt 0:00:04]} 41. Kxd1 {[%emt 0:00:01]} Rb8 {[%emt 0:00:02]} 42. Kd2 {[%emt 0:00:05]} Kd6 {[%emt 0:00:05]} 43. Nb4 {[%emt 0:00:09]} Rf8 {[%emt 0:00:06]} 44. Ke2 {[%emt 0:00:09]} Kc5 {[%emt 0:00:06]} 45. Nc6 {[%emt 0:00:08]} h5 {[%emt 0:00:08]} 46. Ne5 {[%emt 0:00:29]} Kb4 {[%emt 0:00:06]} 47. Ng6 {[%emt 0:00:03]} Rf3 {[%emt 0:00:10]} 48. Nf4 {[%emt 0:00:02]} Ra3 {[%emt 0:00:03]} 49. Nxe6 {[%emt 0:00:04]} Ra2+ {[%emt 0:00:05]} 50. Ke3 {[%emt 0:00:01]} Rxh2 {[%emt 0:00:03]} 51. Kf4 {[%emt 0:00:02]} Rf2+ {[%emt 0:00:07]} 52. Kg5 {[%emt 0:00:02]} Rg2 {[%emt 0:00:03]} 53. Kh4 {[%emt 0:00:17]} Rh2+ {[%emt 0:00:04]} 54. Kg5 {[%emt 0:00:00]} Rg2 {[%emt 0:00:04]} 55. Kxh5 {[%emt 0:00:06]} Rxg3 {[%emt 0:00:03]} 56. Kh4 {[%emt 0:00:15]} Re3 {[%emt 0:00:03]} 57. Ng5 {[%emt 0:00:02]} g3 {[%emt 0:00:03]} 58. Kh3 {[%emt 0:00:03]} Ka5 {[%emt 0:00:04]} 59. Kg2 {[%emt 0:00:01]} Kb4 {[%emt 0:00:03]} 60. Bc6 {[%emt 0:00:11]} Rc3 {[%emt 0:00:05]} 61. Bb5 {[%emt 0:00:03]} Re3 {[%emt 0:00:03]} 62. Bc6 {[%emt 0:00:12]} Rc3 {[%emt 0:00:03]} 63. Be8 {[%emt 0:00:04]} Re3 {[%emt 0:00:05]} 64. Bd7 {[%emt 0:00:03]} Rd3 {[%emt 0:00:05]} 65. Bb5 {[%emt 0:00:08]} Re3 {[%emt 0:00:03]} 1/2-1/2

[Event "European Online Club-ch-C 2021"]
[Site "Online"]
[Date "2021.03.27"]
[Round "4.11"]
[White "Kirsch, Laurent"]
[Black "Colbow, Collin"]
[Result "1/2-1/2"]
[ECO "E20"]
[WhiteElo "2120"]
[BlackElo "2339"]
[Annotator "NA"]
[PlyCount "38"]
[EventDate "2021.03.27"]
[EventType "team-tourn"]
[EventCountry "NET"]
[SourceTitle "playchess.com"]
[Source "ChessBase"]
[SourceQuality "1"]
[TimeControl "900+5"]

1. d4 {[%emt 0:00:00]} Nf6 {[%emt 0:00:05]} 2. c4 {[%emt 0:00:05]} e6 {[%emt 0:00:02]} 3. Nc3 {[%emt 0:00:03]} Bb4 {[%emt 0:00:03]} 4. f3 {[%emt 0:00:03]} c5 {[%emt 0:00:18]} 5. d5 {[%emt 0:00:05]} b5 {[%emt 0:01:35]} 6. e4 {[%emt 0:00:09]} bxc4 {[%emt 0:00:35]} 7. Bxc4 {[%emt 0:00:04]} exd5 {[%emt 0:01:37]} 8. Bxd5 {[%emt 0:00:04]} Nxd5 {[%emt 0:00:06]} 9. Qxd5 {[%emt 0:00:02]} Nc6 {[%emt 0:00:11]} 10. Nge2 {[%emt 0:00:33]} Ba6 {[%emt 0:01:14]} 11. a3 {[%emt 0:00:41]} Bxc3+ {[%emt 0:00:52]} 12. Nxc3 {[%emt 0:00:05]} Nd4 {[%emt 0:00:42]} 13. Kf2 {[%emt 0:00:18]} O-O {[%emt 0:00:35]} 14. Bf4 {[%emt 0:01:15]} Qb6 {[%emt 0:00:50]} 15. Rab1 {[%emt 0:01:34]} Bd3 {[%emt 0:00:40]} 16. Na4 {[%emt 0:00:56]} Qb5 {[%emt 0:02:05]} 17. Nc3 {[%emt 0:01:22]} Qb6 {[%emt 0:00:38]} 18. Na4 {[%emt 0:00:10]} Qb5 {[%emt 0:01:14]} 19. Nc3 {[%emt 0:00:04]} Qb6 {[%emt 0:00:07]} 1/2-1/2

[Event "European Online Club-ch-C 2021"]
[Site "Online"]
[Date "2021.03.27"]
[Round "4.12"]
[White "Schulze, Lara"]
[Black "Schlueter, Yves"]
[Result "1-0"]
[ECO "B05"]
[WhiteElo "2269"]
[BlackElo "2058"]
[Annotator "NA"]
[PlyCount "55"]
[EventDate "2021.03.27"]
[EventType "team-tourn"]
[EventCountry "NET"]
[SourceTitle "playchess.com"]
[Source "ChessBase"]
[SourceQuality "1"]
[TimeControl "900+5"]

1. e4 {[%emt 0:00:00]} Nf6 {[%emt 0:00:03]} 2. e5 {[%emt 0:00:02]} Nd5 {[%emt 0:00:02]} 3. d4 {[%emt 0:00:02]} d6 {[%emt 0:00:03]} 4. Nf3 {[%emt 0:00:03]} Bg4 {[%emt 0:00:02]} 5. Be2 {[%emt 0:00:02]} e6 {[%emt 0:00:03]} 6. h3 {[%emt 0:00:03]} Bh5 {[%emt 0:00:02]} 7. c4 {[%emt 0:00:03]} Nb6 {[%emt 0:00:02]} 8. exd6 {[%emt 0:00:02]} cxd6 {[%emt 0:00:02]} 9. Nc3 {[%emt 0:00:03]} Be7 {[%emt 0:00:08]} 10. d5 {[%emt 0:01:00]} e5 {[%emt 0:00:31]} 11. g4 {[%emt 0:00:04]} Bg6 {[%emt 0:00:02]} 12. h4 {[%emt 0:00:02]} h6 {[%emt 0:00:03]} 13. h5 {[%emt 0:00:03]} Bh7 {[%emt 0:00:05]} 14. Bd3 {[%emt 0:00:03]} Bxd3 {[%emt 0:00:11]} 15. Qxd3 {[%emt 0:00:02]} Qc8 {[%emt 0:00:20]} 16. b3 {[%emt 0:00:08]} Qxg4 {[%emt 0:00:43]} 17. Ba3 {[%emt 0:00:08]} Na6 {[%emt 0:03:03]} 18. Qe4 {[%emt 0:00:44]} Qxe4+ {[%emt 0:01:19]} 19. Nxe4 {[%emt 0:00:04]} O-O-O {[%emt 0:00:11]} 20. Nh4 {[%emt 0:04:27]} Bxh4 {[%emt 0:01:53]} 21. Rxh4 {[%emt 0:00:16]} Kc7 {[%emt 0:00:35]} 22. Ke2 {[%emt 0:01:26]} Nc8 {[%emt 0:02:09]} 23. Rg1 {[%emt 0:00:28]} f5 {[%emt 0:02:59]} 24. Nc3 {[%emt 0:01:24]} Rhg8 {[%emt 0:00:26]} 25. Rg6 {[%emt 0:01:01]} Ne7 {[%emt 0:01:42]} 26. Nb5+ {[%emt 0:00:18]} Kb8 {[%emt 0:00:20]} 27. Bxd6+ {[%emt 0:00:10]} Ka8 {[%emt 0:00:06]} 28. Bxe7 {[%emt 0:00:04]} 1-0

[Event "European Online Club-ch-C 2021"]
[Site "Online"]
[Date "2021.03.27"]
[Round "4.14"]
[White "Martinez Alcantara, Jose Eduardo"]
[Black "Vitiugov, Nikita"]
[Result "1/2-1/2"]
[ECO "C00"]
[WhiteElo "2620"]
[BlackElo "2715"]
[Annotator "RC"]
[PlyCount "65"]
[EventDate "2021.03.27"]
[EventType "team-tourn"]
[EventCountry "NET"]
[SourceTitle "playchess.com"]
[Source "ChessBase"]
[SourceQuality "1"]
[TimeControl "900+5"]

1. e4 {[%emt 0:00:00]} c5 {[%emt 0:00:06]} 2. Nf3 {[%emt 0:00:06]} e6 {[%emt 0:00:02]} 3. g3 {[%emt 0:00:12]} Nc6 {[%emt 0:00:11]} 4. Bg2 {[%emt 0:00:04]} Nf6 {[%emt 0:00:05]} 5. Qe2 {[%emt 0:00:04]} d6 {[%emt 0:00:14]} 6. O-O {[%emt 0:00:07]} Be7 {[%emt 0:00:03]} 7. c3 {[%emt 0:00:06]} O-O {[%emt 0:00:05]} 8. d4 {[%emt 0:00:05]} d5 {[%emt 0:00:03]} 9. e5 {[%emt 0:00:28]} Ne4 {[%emt 0:00:18]} 10. Nbd2 {[%emt 0:02:40]} Nxd2 {[%emt 0:00:19]} 11. Bxd2 {[%emt 0:00:02]} a5 {[%emt 0:00:07]} 12. Rfc1 {[%emt 0:03:41]} b6 {[%emt 0:00:21]} 13. Bf1 {[%emt 0:00:16]} Ba6 {[%emt 0:00:09]} 14. Qe3 {[%emt 0:00:03]} Bxf1 {[%emt 0:00:11]} 15. Kxf1 {[%emt 0:00:02]} a4 {[%emt 0:00:01]} 16. Qd3 {[%emt 0:00:38]} Na5 {[%emt 0:00:13]} 17. Rab1 {[%emt 0:00:25]} Nc4 {[%emt 0:00:46]} 18. Kg2 {[%emt 0:00:54]} Qd7 {[%emt 0:01:15]} 19. Bg5 {[%emt 0:00:32]} h6 {[%emt 0:00:27]} 20. Bxe7 {[%emt 0:00:04]} Qxe7 {[%emt 0:00:02]} 21. b3 {[%emt 0:00:38]} axb3 {[%emt 0:00:08]} 22. axb3 {[%emt 0:00:03]} Na5 {[%emt 0:00:02]} 23. c4 {[%emt 0:01:13]} Rfd8 {[%emt 0:00:30]} 24. cxd5 {[%emt 0:01:30]} Rxd5 {[%emt 0:00:05]} 25. Qb5 {[%emt 0:00:02]} Qb7 {[%emt 0:01:42]} 26. dxc5 {[%emt 0:00:27]} bxc5 {[%emt 0:00:04]} 27. Qxb7 {[%emt 0:00:11]} Nxb7 {[%emt 0:00:02]} 28. b4 {[%emt 0:00:02]} Rad8 {[%emt 0:00:54]} 29. bxc5 {[%emt 0:01:36]} Nxc5 {[%emt 0:00:08]} 30. Rb5 {[%emt 0:00:03]} Nd3 {[%emt 0:01:49]} 31. Rxd5 {[%emt 0:00:03]} Rxd5 {[%emt 0:00:03]} 32. Rc8+ {[%emt 0:00:02]} Kh7 {[%emt 0:00:02]} 33. Rc7 {[%emt 0:00:10]} 1/2-1/2

[Event "European Online Club-ch-C 2021"]
[Site "Online"]
[Date "2021.03.27"]
[Round "4.16"]
[White "Guerrero Olmos, Sergio"]
[Black "Ponkratov, Pavel"]
[Result "0-1"]
[ECO "A46"]
[WhiteElo "2372"]
[BlackElo "2619"]
[Annotator "ChessBase"]
[PlyCount "64"]
[EventDate "2021.03.27"]
[EventType "team-tourn"]
[EventCountry "NET"]
[SourceTitle "playchess.com"]
[Source "ChessBase"]
[SourceQuality "1"]
[TimeControl "900+5"]

1. d4 {[%emt 0:00:00]} Nf6 {[%emt 0:00:06]} 2. Nf3 {[%emt 0:00:03]} e6 {[%emt 0:00:03]} 3. Bf4 {[%emt 0:00:02]} c5 {[%emt 0:00:03]} 4. e3 {[%emt 0:00:02]} Nc6 {[%emt 0:00:01]} 5. c3 {[%emt 0:00:04]} Nh5 {[%emt 0:00:09]} 6. Bg5 {[%emt 0:00:09]} Qb6 {[%emt 0:00:03]} 7. Qb3 {[%emt 0:00:06]} h6 {[%emt 0:00:11]} 8. Bh4 {[%emt 0:00:04]} g5 {[%emt 0:00:13]} 9. Bg3 {[%emt 0:00:02]} Nxg3 {[%emt 0:00:01]} 10. hxg3 {[%emt 0:00:02]} g4 {[%emt 0:00:01]} 11. Nfd2 {[%emt 0:00:14]} d5 {[%emt 0:00:20]} 12. Be2 {[%emt 0:00:06]} f5 {[%emt 0:00:23]} 13. dxc5 {[%emt 0:01:00]} Bxc5 {[%emt 0:00:09]} 14. c4 {[%emt 0:00:43]} d4 {[%emt 0:00:12]} 15. e4 {[%emt 0:00:12]} Bd7 {[%emt 0:00:36]} 16. O-O {[%emt 0:00:16]} O-O {[%emt 0:00:10]} 17. a3 {[%emt 0:00:17]} a5 {[%emt 0:01:31]} 18. Qc2 {[%emt 0:00:16]} Ne5 {[%emt 0:00:31]} 19. exf5 {[%emt 0:00:35]} exf5 {[%emt 0:00:03]} 20. Nb3 {[%emt 0:01:42]} Ba4 {[%emt 0:02:36]} 21. N1d2 {[%emt 0:00:03]} Rae8 {[%emt 0:00:03]} 22. Bd3 {[%emt 0:00:11]} Qf6 {[%emt 0:00:35]} 23. Rae1 {[%emt 0:00:19]} b6 {[%emt 0:00:11]} 24. Re2 {[%emt 0:00:21]} Kg7 {[%emt 0:00:52]} 25. Rfe1 {[%emt 0:00:07]} h5 {[%emt 0:00:25]} 26. Qb1 {[%emt 0:00:38]} h4 {[%emt 0:00:56]} 27. gxh4 {[%emt 0:00:28]} Qxh4 {[%emt 0:00:03]} 28. f4 {[%emt 0:03:48]} g3 {[%emt 0:02:15]} 29. Rxe5 {[%emt 0:01:19]} Rh8 {[%emt 0:00:05]} 30. Kf1 {[%emt 0:00:12]} Qxf4+ {[%emt 0:00:02]} 31. Nf3 {[%emt 0:00:08]} Rh1+ {[%emt 0:00:03]} 32. Ke2 {[%emt 0:00:09]} Rxe5+ {[%emt 0:00:01]} 0-1

[Event "European Online Club-ch-C 2021"]
[Site "Online"]
[Date "2021.03.27"]
[Round "4.17"]
[White "Bluebaum, Matthias"]
[Black "Nguyen, Thai Dai Van"]
[Result "1-0"]
[ECO "D05"]
[WhiteElo "2670"]
[BlackElo "2577"]
[Annotator "RC"]
[PlyCount "63"]
[EventDate "2021.03.27"]
[EventType "team-tourn"]
[EventCountry "NET"]
[SourceTitle "playchess.com"]
[Source "ChessBase"]
[SourceQuality "1"]
[TimeControl "900+5"]

1. d4 {[%emt 0:00:00]} d5 {[%emt 0:00:03]} 2. Nf3 {[%emt 0:00:02]} Nf6 {[%emt 0:00:03]} 3. e3 {[%emt 0:00:02]} c5 {[%emt 0:00:02]} 4. Nbd2 {[%emt 0:00:21]} Nc6 {[%emt 0:00:40]} 5. c3 {[%emt 0:00:16]} cxd4 {[%emt 0:02:23]} 6. exd4 {[%emt 0:00:00]} Bf5 {[%emt 0:00:01]} 7. Nh4 {[%emt 0:00:12]} e6 {[%emt 0:00:39]} 8. Nxf5 {[%emt 0:00:29]} exf5 {[%emt 0:00:00]} 9. Bd3 {[%emt 0:00:24]} g6 {[%emt 0:01:08]} 10. O-O {[%emt 0:00:50]} Be7 {[%emt 0:00:31]} 11. Qb3 {[%emt 0:00:35]} Qc7 {[%emt 0:00:15]} 12. Nf3 {[%emt 0:00:04]} O-O {[%emt 0:00:01]} 13. Bg5 {[%emt 0:00:20]} Rad8 {[%emt 0:00:11]} 14. Bxf6 {[%emt 0:01:21]} Bxf6 {[%emt 0:00:12]} 15. Rfe1 {[%emt 0:00:02]} Na5 {[%emt 0:00:44]} 16. Qa4 {[%emt 0:01:03]} a6 {[%emt 0:00:52]} 17. Re2 {[%emt 0:00:03]} b5 {[%emt 0:00:42]} 18. Qa3 {[%emt 0:00:06]} Qb6 {[%emt 0:00:05]} 19. Rae1 {[%emt 0:00:57]} Rb8 {[%emt 0:01:47]} 20. Qb4 {[%emt 0:02:28]} Nc6 {[%emt 0:00:41]} 21. Qb3 {[%emt 0:00:04]} Rfd8 {[%emt 0:00:01]} 22. a3 {[%emt 0:00:22]} a5 {[%emt 0:00:08]} 23. h4 {[%emt 0:01:35]} b4 {[%emt 0:00:22]} 24. axb4 {[%emt 0:00:00]} axb4 {[%emt 0:00:03]} 25. Qc2 {[%emt 0:00:02]} bxc3 {[%emt 0:00:07]} 26. bxc3 {[%emt 0:00:00]} Qb3 {[%emt 0:00:59]} 27. Bxf5 {[%emt 0:00:50]} Na5 {[%emt 0:01:36]} 28. Bd3 {[%emt 0:00:34]} Rdc8 {[%emt 0:00:03]} 29. Qd2 {[%emt 0:01:15]} h5 {[%emt 0:02:31]} 30. Bxg6 {[%emt 0:00:35]} fxg6 {[%emt 0:00:00]} 31. Qh6 {[%emt 0:00:02]} Bg7 {[%emt 0:00:04]} 32. Qxg6 {[%emt 0:00:02]} 1-0

[Event "European Online Club-ch-C 2021"]
[Site "Online"]
[Date "2021.03.27"]
[Round "4.19"]
[White "Heimann, Andreas"]
[Black "Plat, Vojtech"]
[Result "1/2-1/2"]
[ECO "C70"]
[WhiteElo "2606"]
[BlackElo "2552"]
[Annotator "ChessBase"]
[PlyCount "93"]
[EventDate "2021.03.27"]
[EventType "team-tourn"]
[EventCountry "NET"]
[SourceTitle "playchess.com"]
[Source "ChessBase"]
[SourceQuality "1"]
[TimeControl "900+5"]

1. e4 {[%emt 0:00:00]} e5 {[%emt 0:00:04]} 2. Nf3 {[%emt 0:00:02]} Nc6 {[%emt 0:00:02]} 3. Bb5 {[%emt 0:00:04]} a6 {[%emt 0:00:02]} 4. Ba4 {[%emt 0:00:01]} g6 {[%emt 0:00:02]} 5. h4 {[%emt 0:00:47]} Bg7 {[%emt 0:01:08]} 6. h5 {[%emt 0:00:10]} Nge7 {[%emt 0:00:34]} 7. d3 {[%emt 0:00:15]} d5 {[%emt 0:01:41]} 8. Bg5 {[%emt 0:01:58]} Qd6 {[%emt 0:03:40]} 9. h6 {[%emt 0:03:10]} Bf6 {[%emt 0:00:43]} 10. Bxf6 {[%emt 0:04:42]} Qxf6 {[%emt 0:00:04]} 11. Nc3 {[%emt 0:00:00]} d4 {[%emt 0:00:04]} 12. Nd5 {[%emt 0:00:01]} Qd6 {[%emt 0:01:57]} 13. Nxe7 {[%emt 0:00:04]} Kxe7 {[%emt 0:00:02]} 14. c3 {[%emt 0:00:29]} dxc3 {[%emt 0:01:01]} 15. bxc3 {[%emt 0:00:00]} Bg4 {[%emt 0:00:16]} 16. Qd2 {[%emt 0:00:03]} Bxf3 {[%emt 0:00:30]} 17. gxf3 {[%emt 0:00:00]} Rad8 {[%emt 0:00:50]} 18. Rd1 {[%emt 0:00:04]} b5 {[%emt 0:01:44]} 19. Bb3 {[%emt 0:00:03]} Na5 {[%emt 0:00:02]} 20. d4 {[%emt 0:00:29]} c5 {[%emt 0:00:08]} 21. Bd5 {[%emt 0:00:06]} cxd4 {[%emt 0:00:34]} 22. cxd4 {[%emt 0:00:04]} Nc4 {[%emt 0:00:02]} 23. Bxc4 {[%emt 0:01:13]} bxc4 {[%emt 0:00:02]} 24. dxe5 {[%emt 0:00:56]} Qxd2+ {[%emt 0:00:03]} 25. Rxd2 {[%emt 0:00:00]} Ke6 {[%emt 0:00:26]} 26. f4 {[%emt 0:00:30]} g5 {[%emt 0:00:03]} 27. fxg5 {[%emt 0:00:21]} Kxe5 {[%emt 0:00:01]} 28. Rh3 {[%emt 0:01:02]} Rxd2 {[%emt 0:00:22]} 29. Kxd2 {[%emt 0:00:00]} Kxe4 {[%emt 0:00:06]} 30. Kc3 {[%emt 0:00:44]} Rc8 {[%emt 0:00:18]} 31. Re3+ {[%emt 0:00:12]} Kf4 {[%emt 0:00:10]} 32. Re7 {[%emt 0:00:01]} Kxg5 {[%emt 0:00:04]} 33. Rxf7 {[%emt 0:00:01]} Kg6 {[%emt 0:00:26]} 34. Rf4 {[%emt 0:00:09]} Rc6 {[%emt 0:00:05]} 35. Rh4 {[%emt 0:00:08]} Kg5 {[%emt 0:00:02]} 36. Rh3 {[%emt 0:00:01]} Rxh6 {[%emt 0:00:08]} 37. Rg3+ {[%emt 0:00:02]} Kf4 {[%emt 0:00:02]} 38. Kxc4 {[%emt 0:00:00]} Rh2 {[%emt 0:00:08]} 39. Rg7 {[%emt 0:00:03]} Rxf2 {[%emt 0:00:16]} 40. Rxh7 {[%emt 0:00:02]} Rxa2 {[%emt 0:00:03]} 41. Kb3 {[%emt 0:00:02]} Ra1 {[%emt 0:00:04]} 42. Re7 {[%emt 0:00:03]} Kf5 {[%emt 0:00:04]} 43. Re2 {[%emt 0:00:02]} a5 {[%emt 0:00:03]} 44. Ra2 {[%emt 0:00:02]} Rxa2 {[%emt 0:00:02]} 45. Kxa2 {[%emt 0:00:00]} a4 {[%emt 0:00:01]} 46. Ka3 {[%emt 0:00:01]} Ke4 {[%emt 0:00:02]} 47. Kxa4 {[%emt 0:00:00]} 1/2-1/2